bitfinex-derivatives/quotes_ETHF0:USTF0_20260222
["timestamp","ask_amount","ask_price","bid_price","bid_amount"]
[1771749538080,0.60062199,1973.8,1973.3,0.57720559]
[1771749538277,0.45463887,1973.7,1973.3,0.57720559]
[1771749538576,0.60062199,1973.8,1973.3,0.57720559]
[1771749538875,0.45465331,1973.7,1973.3,0.57720559]
[1771749539076,0.60062199,1973.8,1973.3,0.57720559]
[1771749539377,0.45466099,1973.7,1973.3,0.57720559]
[1771749539577,0.60062199,1973.8,1973.3,0.57720559]
[1771749539777,0.45467672,1973.7,1973.3,0.57720559]
[1771749540072,0.60062199,1973.8,1973.3,0.57720559]
[1771749540374,0.45467676,1973.7,1973.3,0.57720559]
[1771749540583,0.00645488,1973.8,1973.5,0.59465322]
[1771749554090,0.54454927,1974.1,1973.7,0.59755667]
[1771749554290,0.45458084,1974.0,1973.7,0.59755667]
[1771749554588,0.54454927,1974.1,1973.7,0.59755667]
[1771749554789,0.45450107,1974.0,1973.7,0.59755667]
[1771749554980,0.54454927,1974.1,1973.7,0.59755667]
[1771749555185,0.45450107,1974.0,1973.7,0.60286271]
[1771749555382,0.57844091,1974.1,1973.7,0.60286271]
[1771749555691,0.45444024,1974.0,1973.7,0.60286271]
[1771749555890,0.57844091,1974.1,1973.7,0.60286271]
[1771749556092,0.45443966,1974.0,1973.7,0.60286271]
[1771749556392,0.57844091,1974.1,1973.7,0.60286271]
[1771749556593,0.45438493,1974.0,1973.7,0.60286271]
[1771749556789,0.57844091,1974.1,1973.7,0.60286271]
[1771749556992,0.45438494,1974.0,1973.7,0.60286271]
[1771749557288,0.57844091,1974.1,1973.7,0.60286271]
[1771749557488,0.45434251,1974.0,1973.7,0.60286271]
[1771749557688,0.57844091,1974.1,1973.7,0.60286271]
[1771749557888,0.45434251,1974.0,1973.7,0.60286271]
[1771749558091,0.57844091,1974.1,1973.7,0.60286271]
[1771749558290,0.45434251,1974.0,1973.7,0.60286271]
[1771749558490,0.57844091,1974.1,1973.7,0.60286271]
[1771749558789,0.45431017,1974.0,1973.7,0.60286271]
[1771749558991,0.57844091,1974.1,1973.7,0.60286271]
[1771749559186,0.45431014,1974.0,1973.7,0.60286271]
[1771749559484,0.57844091,1974.1,1973.7,0.60286271]
[1771749561092,0.00412465,1974.1,1973.7,0.60286271]
[1771749563499,0.57431626,1974.4,1973.7,0.60286271]
[1771749563802,0.45423968,1974.3,1973.7,0.60286271]
[1771749564098,0.45423968,1974.2,1973.7,0.60286271]
[1771749564298,0.57431626,1974.4,1973.7,0.60286271]
[1771749564496,0.45421915,1974.3,1973.7,0.60286271]
[1771749564695,0.45421915,1974.2,1973.7,0.60286271]
[1771749564900,0.57791711,1974.4,1973.7,0.60286271]
[1771749565097,0.45421919,1974.3,1973.7,0.60286271]
[1771749565298,0.45421919,1974.2,1973.7,0.60286271]
[1771749565495,0.57791711,1974.4,1973.7,0.60286271]
[1771749565700,0.45420501,1974.3,1973.7,0.60286271]
[1771749565896,0.45420501,1974.2,1973.7,0.60286271]
[1771749566101,0.57791711,1974.4,1973.7,0.60286271]
[1771749566297,0.45420654,1974.3,1973.7,0.60286271]
[1771749566496,0.45420654,1974.2,1973.7,0.60286271]
[1771749566698,0.57791711,1974.4,1973.7,0.60286271]
[1771749566898,0.45420103,1974.3,1973.7,0.60286271]
[1771749567099,0.45420103,1974.2,1973.7,0.60286271]
[1771749567300,0.57791711,1974.4,1973.7,0.60286271]
[1771749567495,0.4541888,1974.3,1973.7,0.60286271]
[1771749567700,0.4541888,1974.2,1973.7,0.60286271]
[1771749567899,0.57791711,1974.4,1973.7,0.60286271]
[1771749568100,0.4541888,1974.3,1973.7,0.60286271]
[1771749568399,0.4541888,1974.2,1973.7,0.60286271]
[1771749568594,0.57791711,1974.4,1973.7,0.60286271]
[1771749568800,0.45419691,1974.3,1973.7,0.60286271]
[1771749568997,0.45419691,1974.2,1973.7,0.60286271]
[1771749569197,0.57791711,1974.4,1973.7,0.60286271]
[1771749569498,0.45423906,1974.3,1973.7,0.60286271]
[1771749569698,0.45423906,1974.2,1973.7,0.60286271]
[1771749569899,0.57791711,1974.4,1973.7,0.60286271]
[1771749570104,0.45423075,1974.3,1973.7,0.60286271]
[1771749570304,0.45423075,1974.2,1973.7,0.60286271]
[1771749570501,0.57791711,1974.4,1973.7,0.60286271]
[1771749570700,0.45419901,1974.3,1973.7,0.60286271]
[1771749570900,0.57791711,1974.4,1973.7,0.60286271]
[1771749571100,0.4542058,1974.3,1973.7,0.60286271]
[1771749571301,0.57791711,1974.4,1973.7,0.60286271]
[1771749571503,0.45417097,1974.3,1973.7,0.60286271]
[1771749571702,0.57791711,1974.4,1973.7,0.60286271]
[1771749571902,0.4541743,1974.3,1973.7,0.60286271]
[1771749572104,0.57791711,1974.4,1973.7,0.60286271]
[1771749572304,0.45417427,1974.3,1973.7,0.60286271]
[1771749572505,0.57791711,1974.4,1973.7,0.60286271]
[1771749572811,0.45415772,1974.3,1973.7,0.60286271]
[1771749573005,0.57791711,1974.4,1973.7,0.60286271]
[1771749574008,0.00360085,1974.4,1973.7,0.60286271]
[1771749580110,0.59194092,1974.4,1973.7,0.60286271]
[1771749598328,0.58834007,1974.2,1973.7,0.60286271]
[1771749599828,0.45469453,1974.1,1973.6,0.59298436]
[1771749600023,0.58834007,1974.2,1973.6,0.59298436]
[1771749600225,0.58834007,1974.0,1973.6,0.59298436]
[1771749600928,0.58834007,1974.0,1973.6,0.59898177]
[1771749603632,0.58834007,1973.8,1973.1,0.59298436]
[1771749604633,0.58834007,1974.0,1973.1,0.59920517]
[1771749604831,1.0423997,1973.9,1973.1,0.59920517]
[1771749605032,0.58834007,1973.9,1973.1,0.59920517]
[1771749623852,0.58834007,1973.9,1973.2,0.57942938]
[1771749624656,0.58834007,1973.9,1973.1,1.15695879]
[1771749624657,0.58834007,1973.9,1973.4,0.57942938]
[1771749626558,0.58834007,1973.9,1973.3,0.57942938]
[1771749629161,0.58834007,1973.9,1973.3,6.96589075]
[1771749629361,0.58711278,1973.7,1973.4,0.57942938]
[1771749634065,0.58711278,1973.9,1973.4,0.57942938]
[1771749634271,1.0417802,1973.8,1973.4,0.57942938]
[1771749634470,0.58711278,1973.8,1973.4,0.57942938]
[1771749634765,0.58711278,1973.8,1973.3,6.96589075]
[1771749634970,0.58711278,1973.6,1973.1,0.58565019]
[1771749635268,1.15073798,1973.8,1973.1,0.58565019]
[1771749635269,0.58711278,1973.4,1973.1,0.58565019]
[1771749637674,0.58711278,1973.7,1973.1,0.58565019]
[1771749637869,0.58711278,1973.5,1973.1,0.58565019]
[1771749640274,0.56524517,1973.9,1973.1,0.58565019]
[1771749640472,1.01912664,1973.8,1973.1,0.58565019]
[1771749640674,0.45388147,1973.7,1973.1,0.58565019]
[1771749640875,0.56524517,1973.8,1973.3,0.57823544]
[1771749641080,1.0191134,1973.7,1973.3,0.57823544]
[1771749641271,0.56524517,1973.7,1973.3,0.57823544]
[1771749654890,4.2345345,1974.1,1973.3,0.57823544]
[1771749655090,0.56524517,1973.8,1973.3,0.57823544]
[1771749655390,0.4540518,1973.7,1973.3,0.57823544]
[1771749655586,0.56524517,1973.8,1973.3,0.57823544]
[1771749655786,0.45410093,1973.7,1973.3,0.57823544]
[1771749655986,0.56524517,1973.8,1973.3,0.57823544]
[1771749656287,0.45410056,1973.7,1973.3,0.57823544]
[1771749656488,0.56524517,1973.8,1973.3,0.57823544]
[1771749656689,0.45413028,1973.7,1973.3,0.57823544]
[1771749656891,0.56524517,1973.8,1973.3,0.57823544]
[1771749657189,0.45413028,1973.7,1973.3,0.57823544]
[1771749657386,0.56524517,1973.8,1973.3,0.57823544]
[1771749657691,0.4541608,1973.7,1973.3,0.57823544]
[1771749657891,0.56524517,1973.8,1973.3,0.57823544]
[1771749658092,0.4541608,1973.7,1973.3,0.57823544]
[1771749658391,0.56524517,1973.8,1973.3,0.57823544]
[1771749658585,0.45419491,1973.7,1973.3,0.57823544]
[1771749658788,0.56524517,1973.8,1973.3,0.57823544]
[1771749659090,0.45419487,1973.7,1973.3,0.57823544]
[1771749659288,0.56524517,1973.8,1973.3,0.57823544]
[1771749659489,0.45423266,1973.7,1973.3,0.57823544]
[1771749659786,0.56524517,1973.8,1973.3,0.57823544]
[1771749659984,0.4542322,1973.7,1973.3,0.57823544]
[1771749660185,0.56524517,1973.8,1973.3,0.57823544]
[1771749660386,0.45427049,1973.7,1973.3,0.57823544]
[1771749660595,0.56524517,1973.8,1973.5,0.57823544]
[1771749660792,0.45428548,1973.7,1973.5,0.57823544]
[1771749661094,0.56524517,1974.0,1973.5,0.57823544]
[1771749661288,0.45430036,1973.9,1973.5,0.57823544]
[1771749661486,0.45430036,1973.8,1973.5,0.57823544]
[1771749664095,1.01954553,1973.8,1973.5,0.57823544]
[1771749664296,0.45430036,1973.7,1973.5,0.57823544]
[1771749664491,0.45430036,1973.7,1973.4,1.72897342]
[1771749664702,0.56524517,1974.0,1973.5,0.57823544]
[1771749664897,0.56524517,1973.8,1973.5,0.57823544]
[1771749676009,0.56727591,1974.1,1973.5,0.57823544]
[1771749676309,0.56727591,1973.9,1973.5,0.57823544]
[1771749678613,1.02142081,1973.8,1973.5,0.57823544]
[1771749678813,0.56727591,1973.8,1973.5,0.57823544]
[1771749684216,0.56727591,1974.1,1973.5,0.57823544]
[1771749684515,0.56727591,1973.9,1973.5,0.57823544]
[1771749684711,0.45431322,1973.8,1973.5,0.57823544]
[1771749685106,0.56727591,1974.0,1973.5,0.57823544]
[1771749685310,0.4543162,1973.9,1973.5,0.57823544]
[1771749685511,0.56727591,1974.0,1973.1,0.00622081]
[1771749685512,0.56727591,1974.0,1973.7,0.58153399]
[1771749685812,0.45434922,1973.9,1973.7,0.58153399]
[1771749686115,0.56727591,1974.1,1973.7,0.58153399]
[1771749686315,0.45434816,1974.0,1973.7,0.58153399]
[1771749686614,0.45434816,1973.9,1973.7,0.58153399]
[1771749686815,0.56727591,1974.1,1973.7,0.58153399]
[1771749687014,0.56727591,1973.9,1973.2,0.58153399]
[1771749688217,0.45447564,1973.8,1973.2,0.58153399]
[1771749688417,0.56727591,1973.9,1973.2,0.58153399]
[1771749688716,0.45448013,1973.8,1973.2,0.58153399]
[1771749688907,0.56727591,1973.9,1973.2,0.58153399]
[1771749689111,0.45448014,1973.8,1973.2,0.58153399]
[1771749689313,0.56727591,1973.9,1973.2,0.58153399]
[1771749689509,0.45454911,1973.8,1973.2,0.58153399]
[1771749689718,0.56727591,1973.9,1973.2,0.58153399]
[1771749689912,0.45454795,1973.8,1973.2,0.58153399]
[1771749690115,0.56727591,1973.9,1973.2,0.58153399]
[1771749690317,0.4545479,1973.8,1973.2,0.58153399]
[1771749690516,0.56727591,1973.9,1973.2,0.58153399]
[1771749690718,0.45455209,1973.8,1973.2,0.58153399]
[1771749690918,0.56727591,1973.9,1973.2,0.58153399]
[1771749691111,1.021828,1973.8,1973.2,0.58153399]
[1771749691313,0.56727591,1973.8,1973.2,0.58153399]
[1771749698228,0.45470829,1973.7,1973.2,0.58153399]
[1771749698426,0.57413136,1973.7,1973.2,0.58153399]
[1771749706336,0.57413136,1973.7,1973.1,0.00622081]
[1771749706537,0.57413136,1973.4,1972.6,0.60034713]
[1771749706738,0.57413136,1973.2,1972.6,0.60034713]
[1771749707440,0.57413136,1973.2,1972.6,0.60394531]
[1771749707737,0.57413136,1973.2,1972.6,0.00359818]
[1771749709333,0.57413136,1973.2,1972.6,0.60394531]
[1771749736265,0.45482303,1973.1,1972.6,0.60394531]
[1771749736460,0.5584378,1973.1,1972.6,0.60394531]
[1771749736763,0.5584378,1973.2,1972.6,0.60394531]
[1771749736959,0.45482352,1973.1,1972.6,0.60394531]
[1771749737161,0.5584378,1973.2,1972.6,0.60394531]
[1771749737359,0.454825,1973.1,1972.6,0.60394531]
[1771749737558,0.5584378,1973.2,1972.6,0.60394531]
[1771749737759,0.45483606,1973.1,1972.6,0.60394531]
[1771749738057,0.5584378,1973.2,1972.6,0.60394531]
[1771749738362,0.45483599,1973.1,1972.6,0.60394531]
[1771749738563,0.5584378,1973.2,1972.6,0.60394531]
[1771749738762,0.45485069,1973.1,1972.6,0.60394531]
[1771749739061,0.5584378,1973.2,1972.6,0.60394531]
[1771749739254,0.45485065,1973.1,1972.6,0.60394531]
[1771749739459,0.5584378,1973.2,1972.6,0.60394531]
[1771749739658,0.45487359,1973.1,1972.6,0.60394531]
[1771749739859,0.5584378,1973.2,1972.6,0.60394531]
[1771749740059,0.45487358,1973.1,1972.6,0.60394531]
[1771749740255,0.5584378,1973.2,1972.6,0.60394531]
[1771749740461,0.45488278,1973.1,1972.6,0.60394531]
[1771749740660,0.5584378,1973.2,1972.6,0.60394531]
[1771749740860,4.23615838,1973.5,1972.6,0.60394531]
[1771749740861,0.5584378,1973.0,1972.6,0.55019922]
[1771749741064,0.56360689,1973.0,1972.6,0.55019922]
[1771749747078,0.56360689,1973.0,1972.6,0.00359818]
[1771749750874,0.5584378,1972.8,1972.4,0.54660104]
[1771749751072,0.5584378,1972.8,1972.2,0.54660104]
[1771749751880,0.5584378,1972.8,1972.2,0.55050235]
[1771749752777,0.5584378,1972.8,1972.2,1.15549393]
[1771749752980,0.5584378,1972.8,1972.3,0.54660104]
[1771749758379,0.58326137,1973.0,1972.4,1.15159262]
[1771749758585,0.58326137,1973.0,1972.5,0.59311094]
[1771749759586,0.58326137,1973.0,1972.3,0.59311094]
[1771749761091,0.45380762,1972.9,1972.3,0.59311094]
[1771749761389,0.58326137,1973.0,1972.3,0.59311094]
[1771749761589,0.45379676,1972.9,1972.3,0.59311094]
[1771749761787,0.58326137,1973.0,1972.3,0.59311094]
[1771749761989,0.45379676,1972.9,1972.3,0.59311094]
[1771749762291,0.58326137,1973.0,1972.3,0.59311094]
[1771749762488,0.57809228,1972.8,1972.3,0.59311094]
[1771749780501,0.00516909,1973.0,1972.5,0.59311094]
[1771749780697,6.19887589,1972.9,1972.5,0.59311094]
[1771749780893,0.45473188,1972.8,1972.5,0.59311094]
[1771749781093,0.57809228,1972.9,1972.5,0.59311094]
[1771749781298,0.45472457,1972.8,1972.5,0.59311094]
[1771749781597,0.57809228,1972.9,1972.5,0.59311094]
[1771749781794,0.45465678,1972.8,1972.5,0.59311094]
[1771749781994,0.57809228,1972.9,1972.5,0.59311094]
[1771749782201,0.4546313,1972.8,1972.5,0.59311094]
[1771749782502,0.57809228,1972.9,1972.5,0.59311094]
[1771749782703,0.45462517,1972.8,1972.5,0.59311094]
[1771749782895,0.57809228,1972.9,1972.5,0.59311094]
[1771749783096,0.45462267,1972.8,1972.5,0.59311094]
[1771749783295,0.57809228,1972.9,1972.5,0.59311094]
[1771749783498,0.45461807,1972.8,1972.5,0.59311094]
[1771749783699,0.57809228,1972.9,1972.5,0.59311094]
[1771749783999,0.4546179,1972.8,1972.5,0.59311094]
[1771749784196,0.57809228,1972.9,1972.5,0.59311094]
[1771749784396,0.45462199,1972.8,1972.5,0.59311094]
[1771749784606,0.57809228,1972.9,1972.5,0.59311094]
[1771749784905,0.45462201,1972.8,1972.5,0.59311094]
[1771749785208,0.57809228,1972.9,1972.5,0.59311094]
[1771749785507,0.45462829,1972.8,1972.5,0.59311094]
[1771749785707,0.57809228,1972.9,1972.5,0.59311094]
[1771749785906,0.45462876,1972.8,1972.5,0.59311094]
[1771749786106,0.57809228,1972.9,1972.5,0.59311094]
[1771749786308,0.45462676,1972.8,1972.5,0.59311094]
[1771749786606,0.57809228,1972.9,1972.5,0.59311094]
[1771749786805,0.45463768,1972.8,1972.5,0.59311094]
[1771749786998,0.57809228,1972.9,1972.5,0.59311094]
[1771749787202,0.45463771,1972.8,1972.5,0.59311094]
[1771749787408,0.57809228,1972.9,1972.5,0.59311094]
[1771749787604,0.45465014,1972.8,1972.5,0.59311094]
[1771749787904,0.57809228,1972.9,1972.5,0.59311094]
[1771749788104,0.45465016,1972.8,1972.5,0.59311094]
[1771749788306,0.00516909,1973.0,1972.7,0.56619535]
[1771749793113,0.56353975,1973.4,1972.7,0.56619535]
[1771749793312,6.30168309,1973.3,1972.7,0.56619535]
[1771749793610,6.19231078,1973.2,1972.7,0.56619535]
[1771749793810,0.45416744,1973.1,1972.7,0.56619535]
[1771749794012,0.00497616,1973.1,1972.7,0.56619535]
[1771749798913,0.56353975,1973.4,1972.9,0.5572717]
[1771749799105,1.01756334,1973.3,1972.9,0.5572717]
[1771749799309,0.56353975,1973.5,1972.9,0.5572717]
[1771749799511,1.01751715,1973.4,1972.9,0.5572717]
[1771749799709,0.56353975,1973.4,1972.9,0.5572717]
[1771749799909,0.56733616,1973.4,1972.9,0.5572717]
[1771749802616,0.56353975,1973.2,1972.9,0.5572717]
[1771749810516,0.56733616,1973.4,1972.9,0.5572717]
[1771749812124,0.56353975,1973.2,1972.5,0.5572717]
[1771749813422,1.01729119,1973.1,1972.5,0.5572717]
[1771749813719,0.56353975,1973.1,1972.5,0.5572717]
[1771749831244,0.58197377,1973.3,1972.5,0.5572717]
[1771749831445,0.45417091,1973.2,1972.5,0.5572717]
[1771749831742,0.45417091,1973.1,1972.5,0.5572717]
[1771749833545,0.58197377,1973.2,1972.5,0.5572717]
[1771749834545,0.58197377,1973.3,1972.5,0.5572717]
[1771749834747,0.45421116,1973.2,1972.5,0.5572717]
[1771749834946,0.58197377,1973.3,1972.5,0.5572717]
[1771749835146,0.45421117,1973.2,1972.5,0.5572717]
[1771749835445,0.58197377,1973.3,1972.5,0.5572717]
[1771749835645,0.45423765,1973.2,1972.5,0.5572717]
[1771749835845,0.58197377,1973.3,1972.5,0.5572717]
[1771749836044,0.45423768,1973.2,1972.5,0.5572717]
[1771749836245,0.58197377,1973.3,1972.5,0.5572717]
[1771749836445,0.45426673,1973.2,1972.5,0.5572717]
[1771749836640,0.58197377,1973.3,1972.5,0.5572717]
[1771749836841,0.45426676,1973.2,1972.5,0.5572717]
[1771749837042,0.58197377,1973.3,1972.5,0.5572717]
[1771749837340,0.45426062,1973.2,1972.5,0.5572717]
[1771749837539,0.58197377,1973.3,1972.5,0.5572717]
[1771749837744,1.03626655,1973.2,1972.5,0.5572717]
[1771749837941,0.58197377,1973.2,1972.5,0.5572717]
[1771749839154,0.4543309,1973.1,1972.5,0.5572717]
[1771749839452,0.58197377,1973.2,1972.5,0.5572717]
[1771749839748,0.4543679,1973.1,1972.5,0.5572717]
[1771749839950,0.58197377,1973.2,1972.5,0.5572717]
[1771749840144,0.4543679,1973.1,1972.5,0.5572717]
[1771749840345,0.58197377,1973.2,1972.5,0.5572717]
[1771749840552,0.45441489,1973.1,1972.5,0.5572717]
[1771749840850,0.58197377,1973.2,1972.5,0.5572717]
[1771749841050,0.45441489,1973.1,1972.5,0.5572717]
[1771749841352,0.58197377,1973.2,1972.5,0.5572717]
[1771749841554,0.45450306,1973.1,1972.5,0.5572717]
[1771749841753,0.58197377,1973.2,1972.5,0.5572717]
[1771749841954,0.45450307,1973.1,1972.5,0.5572717]
[1771749842153,0.58197377,1972.9,1972.4,0.57267434]
[1771749869869,0.58197377,1972.9,1972.5,0.5528589]
[1771749879381,0.58197377,1972.9,1972.5,0.56282977]
[1771749898512,4.23519974,1973.3,1972.5,0.56282977]
[1771749898710,0.56552528,1973.1,1972.5,0.56282977]
[1771749898910,6.7500291,1973.0,1972.5,0.56282977]
[1771749899109,1.02042423,1972.9,1972.5,0.56282977]
[1771749899303,0.56552528,1972.9,1972.5,0.56282977]
[1771749900610,0.56552528,1973.2,1972.7,0.56282977]
[1771749900811,0.45493568,1973.1,1972.9,0.56282977]
[1771749901012,0.45493568,1973.0,1972.9,0.56282977]
[1771749901212,0.56552528,1973.2,1972.8,1.71436754]
[1771749901410,1.02026778,1973.1,1972.8,1.71436754]
[1771749901606,0.56552528,1973.1,1972.8,1.71436754]
[1771749901808,0.56552528,1973.1,1972.8,0.56282977]
[1771749905410,0.56552528,1973.1,1972.7,0.56282977]
[1771749911919,0.56552528,1973.1,1972.7,0.54736069]
[1771749929229,1.03108019,1973.0,1972.7,0.54736069]
[1771749929431,0.57619075,1973.0,1972.7,0.54736069]
[1771749938041,4.23899615,1973.4,1972.7,0.54736069]
[1771749938240,0.56774804,1973.2,1972.7,0.54736069]
[1771749938439,0.45503456,1973.1,1972.7,0.54736069]
[1771749940136,1.0227826,1973.1,1972.7,0.54736069]
[1771749940435,0.45503456,1973.0,1972.7,0.54736069]
[1771749943140,1.0227826,1973.0,1972.7,0.54736069]
[1771749943342,0.56774804,1973.0,1972.7,0.54736069]
[1771749945545,0.56774804,1973.3,1972.7,0.54736069]
[1771749945747,0.56774804,1973.1,1972.7,0.54736069]
[1771749945946,0.45499986,1973.0,1972.7,0.54736069]
[1771749946147,0.56774804,1973.1,1972.7,0.54736069]
[1771749946347,0.45499804,1973.0,1972.7,0.54736069]
[1771749946549,0.56774804,1973.1,1972.7,0.54736069]
[1771749946847,0.45499801,1973.0,1972.7,0.54736069]
[1771749947041,0.56774804,1973.1,1972.7,0.54736069]
[1771749947239,0.4549984,1973.0,1972.7,0.54736069]
[1771749947439,0.56774804,1973.1,1972.7,0.54736069]
[1771749947643,0.45499839,1973.0,1972.7,0.54736069]
[1771749947940,0.56774804,1973.1,1972.7,0.54736069]
[1771749948140,0.45499846,1973.0,1972.7,0.54736069]
[1771749948345,0.56774804,1973.1,1972.7,0.54736069]
[1771749948544,0.45499882,1973.0,1972.7,0.54736069]
[1771749948748,0.56774804,1973.1,1972.7,0.54736069]
[1771749948946,0.45499654,1973.0,1972.7,0.54736069]
[1771749949143,0.56774804,1973.1,1972.7,0.54736069]
[1771749949348,1.02274461,1973.0,1972.7,0.54736069]
[1771749949543,0.56774804,1973.0,1972.7,0.54736069]
[1771749950748,4.23899615,1973.4,1972.7,0.54736069]
[1771749950749,0.56774804,1973.3,1972.7,0.54736069]
[1771749950952,0.56774804,1973.1,1972.7,0.54736069]
[1771749951152,0.45499654,1973.0,1972.7,0.54736069]
[1771749962661,0.45499654,1973.0,1972.4,7.94398582]
[1771749962958,4.23899615,1973.4,1972.4,7.94398582]
[1771749963155,0.45499113,1973.3,1972.4,7.94398582]
[1771749963358,6.17918042,1973.2,1972.4,7.94398582]
[1771749963559,0.45499113,1973.1,1972.4,7.94398582]
[1771749963759,0.45499113,1973.0,1972.4,7.94398582]
[1771749963959,4.23899615,1973.4,1972.4,7.94398582]
[1771749964158,0.45499122,1973.3,1972.4,7.94398582]
[1771749964359,6.17918179,1973.2,1972.4,7.94398582]
[1771749964559,0.45499122,1973.1,1972.4,7.94398582]
[1771749964756,0.45499122,1973.0,1972.5,0.57199367]
[1771749964956,0.56774804,1973.2,1972.5,0.57199367]
[1771749965158,0.45499127,1973.1,1972.5,0.57199367]
[1771749965360,0.45499127,1973.0,1972.5,0.57199367]
[1771749965560,0.56774804,1973.2,1972.5,0.57199367]
[1771749965863,0.45499131,1973.1,1972.5,0.57199367]
[1771749966060,0.45499131,1973.0,1972.5,0.57199367]
[1771749966260,0.56774804,1973.2,1972.5,0.57199367]
[1771749966460,0.45499128,1973.1,1972.5,0.57199367]
[1771749966660,0.45499128,1973.0,1972.5,0.57199367]
[1771749966862,0.56774804,1973.2,1972.5,0.57199367]
[1771749967053,0.45499124,1973.1,1972.5,0.57199367]
[1771749967257,0.45499124,1973.0,1972.5,0.57199367]
[1771749967453,0.56774804,1973.2,1972.5,0.57199367]
[1771749967652,0.45499138,1973.1,1972.5,0.57199367]
[1771749967855,0.45499138,1973.0,1972.5,0.57199367]
[1771749968060,0.56774804,1973.1,1972.5,0.57199367]
[1771749968263,0.45498982,1973.0,1972.5,0.57199367]
[1771749968562,0.56774804,1973.1,1972.5,0.57199367]
[1771749968763,0.45498977,1973.0,1972.5,0.57199367]
[1771749968961,0.56774804,1973.1,1972.5,0.57199367]
[1771749969161,0.45498977,1973.0,1972.5,0.57199367]
[1771749969363,0.56774804,1973.1,1972.5,0.57199367]
[1771749969561,0.45498991,1973.0,1972.5,0.57199367]
[1771749969761,0.56774804,1973.1,1972.5,0.57199367]
[1771749969964,0.45498986,1973.0,1972.5,0.57199367]
[1771749970260,0.56774804,1973.1,1972.5,0.57199367]
[1771749970461,0.45498995,1973.0,1972.5,0.57199367]
[1771749970662,0.56774804,1973.1,1972.5,0.57199367]
[1771749970960,0.45499155,1973.0,1972.5,0.57199367]
[1771749971160,0.56774804,1973.1,1972.5,0.57199367]
[1771749971361,1.02698865,1973.0,1972.5,0.57199367]
[1771749971663,0.57199696,1973.3,1972.5,0.57199367]
[1771749971863,0.57199696,1973.1,1972.5,0.57199367]
[1771749972161,0.45499172,1973.0,1972.5,0.57199367]
[1771749972856,0.00379641,1973.4,1973.0,0.54680347]
[1771749973364,0.56322776,1973.4,1973.0,0.54680347]
[1771749977461,0.56322776,1973.4,1972.7,0.54680347]
[1771749993881,0.56322776,1973.4,1972.8,0.54680347]
[1771749999982,0.56387183,1973.3,1972.7,0.57749919]
[1771750000287,1.15500661,1973.4,1972.7,0.57749919]
[1771750000288,0.56387183,1973.2,1972.7,0.57749919]
[1771750021007,0.56387183,1973.2,1972.5,0.57749919]
[1771750021311,0.56387183,1973.0,1972.5,0.57749919]
[1771750025214,0.56387183,1973.0,1972.6,0.57749919]
[1771750025915,0.56387183,1973.3,1972.6,0.57749919]
[1771750026115,1.15500661,1973.4,1972.6,0.57749919]
[1771750026116,0.56387183,1973.1,1972.6,0.57749919]
[1771750033716,0.4510661,1973.0,1972.4,0.58135612]
[1771750033919,0.59415797,1972.8,1972.4,0.58135612]
[1771750037921,0.59415797,1972.8,1972.3,0.58135612]
[1771750038316,0.59415797,1972.8,1972.2,0.58525743]
[1771750053234,0.59415797,1972.7,1972.2,0.58525743]
[1771750062348,0.45050539,1972.6,1972.2,0.58525743]
[1771750062647,0.59415797,1972.7,1972.2,0.58525743]
[1771750062847,1.03287242,1972.6,1972.2,0.58525743]
[1771750063046,0.5823761,1972.6,1972.2,0.58525743]
[1771750066552,1.03321886,1972.5,1972.2,0.58525743]
[1771750066753,0.5823761,1972.5,1972.2,0.58525743]
[1771750068047,0.5823761,1972.5,1972.1,0.58571619]
[1771750068354,0.5823761,1972.5,1972.1,0.57953971]
[1771750069157,0.5823761,1972.5,1972.1,0.58429232]
[1771750080064,0.5823761,1972.5,1972.1,0.00475261]
[1771750081465,0.5823761,1972.5,1972.1,0.5904688]
[1771750083066,0.5823761,1972.5,1972.1,0.00475261]
[1771750085971,0.5823761,1972.3,1972.1,0.00475261]
[1771750086470,0.5823761,1972.3,1972.0,0.58571619]
[1771750087475,0.5823761,1972.3,1971.9,0.58571619]
[1771750087675,0.5823761,1972.3,1972.0,0.00507075]
[1771750089577,0.5823761,1972.3,1971.9,0.58571619]
[1771750090470,0.5823761,1972.3,1971.9,0.59177093]
[1771750090675,0.5823761,1972.3,1971.9,0.00605474]
[1771750091179,0.5823761,1972.3,1971.9,0.58914452]
[1771750092774,0.5823761,1972.3,1971.9,0.00605474]
[1771750095684,0.5823761,1972.3,1971.8,0.58308978]
[1771750096578,0.5823761,1972.3,1971.8,0.58772787]
[1771750096879,0.5823761,1972.3,1971.8,0.00463809]
[1771750103886,0.5823761,1972.3,1971.6,0.55013565]
[1771750104884,0.5823761,1972.3,1971.6,0.5557906]
[1771750105985,0.5823761,1972.3,1971.6,0.00565495]
[1771750106487,0.5497018,1972.1,1971.6,0.5557906]
[1771750115900,0.5497018,1972.1,1971.7,1.70255333]
[1771750116999,0.5497018,1972.1,1971.8,0.55013565]
[1771750117801,0.5497018,1972.2,1971.8,0.55013565]
[1771750118397,4.79398641,1972.5,1971.9,1.15241768]
[1771750118591,47.13345026,1972.7,1972.0,0.58102907]
[1771750118592,0.55910342,1972.3,1972.0,0.58102907]
[1771750118797,0.55910342,1972.3,1971.9,1.73344675]
[1771750118997,0.55910342,1972.3,1971.9,0.58102907]
[1771750119602,0.55910342,1972.5,1971.9,0.58102907]
[1771750119804,0.55910342,1972.3,1971.9,0.58102907]
[1771750125609,0.55910342,1972.3,1971.8,0.58102907]
[1771750126609,0.55910342,1972.3,1971.6,0.00565495]
[1771750126812,0.55910342,1972.1,1971.6,0.58668402]
[1771750131610,0.55910342,1972.1,1971.7,1.15241768]
[1771750131814,0.55910342,1972.1,1971.8,0.58102907]
[1771750134218,0.55910342,1972.1,1971.6,0.58668402]
[1771750136718,0.55910342,1972.1,1971.6,0.00565495]
[1771750136919,0.55910342,1972.1,1971.6,0.58668402]
[1771750138921,0.55910342,1972.4,1971.8,0.58102907]
[1771750139222,6.71546863,1972.3,1971.8,0.58102907]
[1771750139424,0.45081379,1972.2,1971.8,0.58102907]
[1771750139622,1.00991721,1972.2,1971.8,0.58102907]
[1771750139923,0.55910342,1972.2,1971.8,0.58102907]
[1771750151232,0.55910342,1972.2,1971.7,1.75012158]
[1771750151532,0.55910342,1972.2,1971.8,0.5977039]
[1771750151829,0.55910342,1972.2,1971.6,0.00565495]
[1771750152131,0.55910342,1972.2,1971.7,0.5977039]
[1771750169249,4.23488299,1972.5,1971.8,0.57199119]
[1771750169557,0.59992027,1972.3,1971.8,0.57199119]
[1771750169751,0.45118728,1972.2,1971.8,0.57199119]
[1771750170050,0.59992027,1972.3,1971.8,0.57199119]
[1771750170244,1.05108812,1972.2,1971.8,0.57199119]
[1771750170449,0.59992027,1972.2,1971.8,0.57199119]
[1771750170955,0.59992027,1972.5,1971.8,0.57199119]
[1771750171158,6.76361411,1972.4,1971.8,0.57199119]
[1771750171458,1.05107229,1972.3,1971.8,0.57199119]
[1771750171657,1.05107229,1972.2,1971.8,0.57199119]
[1771750171858,0.59992027,1972.2,1971.8,0.57199119]
[1771750189571,0.58886745,1972.4,1971.8,0.57199119]
[1771750189768,6.75352405,1972.3,1971.8,0.57199119]
[1771750189973,0.45109358,1972.2,1971.8,0.57199119]
[1771750190369,1.03996103,1972.2,1971.8,0.57199119]